bitfinex/quotes_SOLUSD_20260228
["timestamp","ask_amount","ask_price","bid_price","bid_amount"]
[1772321940630,1.72855576,84.142,84.06,0.1]
[1772321940631,1.72855576,84.142,84.09,3.03874745]
[1772321941118,1.72855576,84.142,84.08,3.03874745]
[1772321941630,1.72855576,84.142,84.09,3.03874745]
[1772321941830,41.59684338,84.141,84.091,11.89187903]
[1772321942155,41.59684338,84.141,84.057,11.89655731]
[1772321942156,1.72855576,84.137,84.057,11.89655731]
[1772321942437,1.72855576,84.137,84.07,3.03874745]
[1772321944026,1.72855576,84.132,84.071,11.89470804]
[1772321945144,1.72855576,84.127,84.071,11.89470804]
[1772321945465,1.72855576,84.127,84.071,41.63147815]
[1772321946534,1.72855576,84.127,84.071,11.89470804]
[1772321947137,3.69383402,84.123,84.061,41.63643068]
[1772321947345,1.72855576,84.122,84.061,41.63643068]
[1772321948756,1.72855576,84.122,84.061,11.89612305]
[1772321950239,1.72855576,84.12,84.061,41.63643068]
[1772321950854,1.72855576,84.12,84.061,11.89612305]
[1772321951219,3.69383402,84.118,84.06,0.1]
[1772321951442,1.72855576,84.117,84.06,0.1]
[1772321951848,1.72855576,84.117,84.05,0.1]
[1772321952026,1.72855576,84.115,84.047,1.77229407]
[1772321952351,1.72855576,84.107,84.015,29.75637141]
[1772321952542,1.72855576,84.107,84.028,11.90076519]
[1772321952860,1.72855576,84.107,84.003,59.52144109]
[1772321952861,1.72855576,84.102,84.02,3.03874745]
[1772321953034,1.72855576,84.102,84.041,11.89895408]
[1772321954131,1.72855576,84.102,84.04,0.1]
[1772321954328,1.72855576,84.097,84.04,0.1]
[1772321955939,1.72855576,84.097,84.015,41.65922751]
[1772321956347,1.72855576,84.092,84.004,3.69383402]
[1772321956549,1.72855576,84.092,84.005,0.28432314]
[1772321956736,1.72855576,84.092,84.005,0.14216157]
[1772321957337,1.72855576,84.092,83.96,3.04835594]
[1772321957573,1.72855576,84.087,84.01,3.04835594]
[1772321957847,1.72855576,84.087,84.0,3.04835594]
[1772321958241,1.72855576,84.082,84.03,3.04835594]
[1772321958634,1.72855576,84.082,84.04,3.04835594]
[1772321958851,1.72855576,84.082,84.03,3.04835594]
[1772321959649,1.72855576,84.082,84.015,5.64518502]
[1772321959852,1.72855576,84.082,84.03,3.04835594]
[1772321960357,1.72855576,84.08,84.018,0.28432314]
[1772321960549,1.72855576,84.08,84.03,3.04835594]
[1772321961233,1.72855576,84.08,84.02,8.1631487]
[1772321961656,1.72855576,84.08,84.03,8.1631487]
[1772321961839,1.72855576,84.08,84.02,8.1631487]
[1772321962039,1.72855576,84.08,84.017,0.28432314]
[1772321962555,1.72855576,84.078,84.018,41.65774]
[1772321963848,11.89357627,84.079,84.018,41.65774]
[1772321964048,1.72855576,84.093,84.019,5.64518502]
[1772321964360,1.72855576,84.093,84.021,5.64518502]
[1772321966457,1.72855576,84.091,84.023,41.93958418]
[1772321968960,1.72855576,84.089,84.023,41.93958418]
[1772321970960,1.72855576,84.087,84.023,41.93958418]
[1772321972861,1.72855576,84.087,84.023,101.44709997]
[1772321973867,1.72855576,84.091,84.025,0.28432314]
[1772321974769,1.72855576,84.091,84.027,5.64518502]
[1772321975061,1.72855576,84.091,84.029,5.64518502]
[1772321975274,1.72855576,84.091,84.028,102.34683675]
[1772321975275,1.72855576,84.108,84.031,5.64518502]
[1772321975453,1.72855576,84.108,84.035,5.64518502]
[1772321975762,1.72855576,84.108,84.037,5.64518502]
[1772321976061,1.72855576,84.108,84.039,5.64518502]
[1772321976268,1.72855576,84.108,84.041,5.64518502]
[1772321976448,1.72855576,84.108,84.043,0.28432314]
[1772321976649,1.72855576,84.108,84.045,0.28432314]
[1772321977058,1.72855576,84.108,84.031,4.88387103]
[1772321977059,1.72855576,84.106,84.047,0.28432314]
[1772321979559,1.72855576,84.104,84.048,41.64287073]
[1772321982870,1.72855576,84.102,84.034,101.43385785]
[1772321983254,1.72855576,84.102,84.035,0.28432314]
[1772321985679,1.72855576,84.1,84.037,0.28432314]
[1772321988480,1.72855576,84.1,84.034,59.4997263]
[1772321988481,1.72855576,84.098,84.038,41.64782598]
[1772321990477,1.72855576,84.096,84.038,41.64782598]
[1772321991461,1.72855576,84.094,84.038,41.64782598]
[1772321993165,41.61959687,84.095,84.021,0.28432314]
[1772321993166,1.72855576,84.092,84.021,0.28432314]
[1772321995475,41.62157661,84.091,84.022,41.65575681]
[1772321995782,1.72855576,84.09,84.023,0.28432314]
[1772321997682,1.72855576,84.088,84.025,0.28432314]
[1772321998991,1.72855576,84.086,84.027,0.28432314]
[1772322001095,1.72855576,84.084,84.028,41.6527824]
[1772322001473,1.72855576,84.084,84.028,101.15675726]
[1772322003289,1.72855576,84.082,84.028,101.15675726]
[1772322005108,1.72855576,84.08,84.028,101.15675726]
[1772322006096,1.72855576,84.08,84.029,6.83525035]
[1772322006296,1.72855576,84.08,84.029,5.64518502]
[1772322006483,1.72855576,84.08,84.028,101.15675726]
[1772322007299,1.72855576,84.078,84.028,89.25596229]
[1772322009702,1.72855576,84.078,84.029,5.64518502]
[1772322009893,1.72855576,84.101,84.029,6.83525035]
[1772322010789,1.72855576,84.1,84.031,0.28432314]
[1772322011105,1.72855576,84.1,84.034,0.28432314]
[1772322012903,1.72855576,84.098,84.036,0.28432314]
[1772322014997,1.72855576,84.096,84.037,41.64832156]
[1772322015186,1.72855576,84.096,84.038,0.28432314]
[1772322017110,11.89131339,84.095,84.039,41.64733039]
[1772322017291,1.72855576,84.094,84.039,41.64733039]
[1772322018194,1.72855576,84.092,84.039,41.64733039]
[1772322019713,1.72855576,84.092,84.039,39.14733039]
[1772322020007,1.72855576,84.092,84.039,98.64351668]
[1772322020397,1.72855576,84.098,84.041,0.28432314]
[1772322020597,59.43450517,84.127,84.039,98.64351668]
[1772322020598,1.72855576,84.117,84.043,5.64518502]
[1772322020798,1.72855576,84.117,84.045,5.64518502]
[1772322021003,1.72855576,84.117,84.047,5.64518502]
[1772322021218,1.72855576,84.117,84.049,0.28432314]
[1772322021514,1.72855576,84.117,84.051,0.28432314]
[1772322021721,1.72855576,84.115,84.055,0.28432314]
[1772322021912,1.72855576,84.115,84.057,0.28432314]
[1772322022105,1.72855576,84.115,84.058,1.18965476]
[1772322023827,1.72855576,84.113,84.059,41.63742132]
[1772322026213,1.72855576,84.111,84.059,41.63742132]
[1772322027911,1.72855576,84.118,84.061,0.28432314]
[1772322028205,1.72855576,84.118,84.063,0.28432314]
[1772322028405,1.72855576,84.118,84.065,41.91877266]
[1772322028622,1.72855576,84.118,84.067,0.28432314]
[1772322028817,1.72855576,84.118,84.068,1.18951325]
[1772322029211,11.88820333,84.117,84.068,1.18951325]
[1772322029521,1.72855576,84.116,84.068,1.18951325]
[1772322030507,1.72855576,84.114,84.069,11.89499101]
[1772322030711,1.72855576,84.114,84.055,29.74240044]
[1772322030712,1.72855576,84.114,84.063,11.89579382]
[1772322032617,1.72855576,84.112,84.049,12.18214464]
[1772322033728,1.72855576,84.11,84.049,41.92669841]
[1772322036736,1.72855576,84.108,84.049,41.92669841]
[1772322036938,1.72855576,84.108,84.051,0.28432314]
[1772322037929,1.72855576,84.106,84.053,0.28432314]
[1772322039327,1.72855576,84.104,84.055,0.28432314]
[1772322041824,1.72855576,84.102,84.028,17.54597999]
[1772322042024,1.72855576,84.102,84.03,5.64518502]
[1772322042340,1.72855576,84.102,84.034,5.64518502]
[1772322042838,11.89046503,84.101,84.034,41.64980841]
[1772322043126,1.72855576,84.1,84.035,6.83516538]
[1772322045938,1.72855576,84.098,84.037,5.64518502]
[1772322046633,1.72855576,84.098,84.036,41.64881716]
[1772322046930,1.72855576,84.098,84.037,0.28432314]
[1772322049035,1.72855576,84.093,84.017,47.0190977]
[1772322049238,1.72855576,84.093,84.018,0.28432314]
[1772322050941,1.72855576,84.091,84.019,41.65724418]
[1772322052336,41.62207158,84.09,84.019,41.65724418]
[1772322052523,1.72855576,84.089,84.03,3.04701228]
[1772322054949,1.72855576,84.087,84.031,11.9003701]
[1772322056329,1.72855576,84.087,84.031,41.65129535]
[1772322057736,1.72855576,84.085,84.031,41.65129535]
[1772322059627,1.72855576,84.083,84.031,41.65129535]
[1772322060447,1.72855576,84.083,84.04,3.04701228]
[1772322060643,1.72855576,84.083,84.05,3.04701228]
[1772322061243,1.72855576,84.088,84.05,3.04701228]
[1772322061433,1.72855576,84.088,84.061,11.89612305]
[1772322062522,1.72855576,84.115,84.07,3.04701228]
[1772322062738,1.72855576,84.115,84.062,1.18959815]
[1772322062739,1.72855576,84.114,84.062,1.18959815]
[1772322062934,1.72855576,84.114,84.07,3.04701228]
[1772322064845,1.72855576,84.114,84.071,41.91580129]
[1772322065050,1.72855576,84.114,84.08,3.04701228]
[1772322067248,1.72855576,84.114,84.081,11.89329337]
[1772322068245,1.72855576,84.114,84.081,41.62652679]
[1772322069141,1.72855576,84.114,84.081,29.73323342]
[1772322075844,1.72855576,84.119,84.081,29.73323342]
[1772322077259,1.72855576,84.119,84.064,11.89559048]
[1772322077450,1.72855576,84.119,84.03,59.50228632]
[1772322077451,1.72855576,84.114,84.048,11.89796306]
[1772322077764,1.72855576,84.114,84.048,41.64287073]
[1772322078246,1.72855576,84.114,84.048,11.89796306]
[1772322079263,1.72855576,84.109,84.038,0.28432314]
[1772322079957,1.72855576,84.109,84.025,5.36086188]
[1772322080254,1.72855576,84.109,84.024,41.65476529]
[1772322080648,1.72855576,84.105,84.024,41.65476529]
[1772322080861,1.72855576,84.105,84.025,0.28432314]
[1772322082957,1.72855576,84.103,84.027,0.28432314]
[1772322083342,1.72855576,84.103,84.03,3.04397879]
[1772322085062,1.72855576,84.098,84.031,41.65129535]
[1772322087063,1.72855576,84.096,84.031,41.65129535]
[1772322087568,1.72855576,84.093,84.031,41.65129535]
[1772322087964,1.72855576,84.093,84.05,3.04397879]
[1772322088473,1.72855576,84.1,84.06,3.04397879]
[1772322089275,1.72855576,84.1,84.061,11.89612305]
[1772322089860,1.72855576,84.127,84.08,3.04397879]
[1772322090159,1.72855576,84.126,84.062,5.64518502]
[1772322090675,1.72855576,84.126,84.061,41.63643068]
[1772322090676,1.72855576,84.123,84.061,11.89612305]
[1772322091359,1.72855576,84.121,84.051,11.89753839]
[1772322092575,1.72855576,84.121,84.051,41.64138438]
[1772322092765,1.72855576,84.121,84.06,3.04397879]
[1772322093557,1.72855576,84.116,84.061,11.89612305]
[1772322095281,1.72855576,84.116,84.056,11.89678042]
[1772322095964,1.72855576,84.111,84.052,11.89739684]
[1772322096862,1.72855576,84.111,84.06,3.04397879]
[1772322098081,1.72855576,84.111,84.052,11.89739684]
[1772322099670,1.72855576,84.106,84.052,11.89739684]
[1772322100986,41.61217452,84.11,84.051,29.74384599]
[1772322100987,1.72855576,84.101,84.051,29.74384599]
[1772322102983,1.72855576,84.099,84.051,41.64138438]
[1772322104078,1.72855576,84.097,84.051,41.64138438]
[1772322105282,1.72855576,84.095,84.051,41.64138438]
[1772322106783,1.72855576,84.1,84.06,3.04397879]
[1772322107178,1.72855576,84.1,84.061,11.89612305]
[1772322107883,29.72134286,84.115,84.061,11.89612305]
[1772322107884,1.72855576,84.098,84.061,11.89612305]
[1772322111776,1.72855576,84.096,84.051,41.64138438]
[1772322112563,1.72855576,84.111,84.06,3.04397879]
[1772322113568,1.72855576,84.108,84.06,3.04397879]
[1772322115169,1.72855576,84.106,84.061,11.89612305]
[1772322116588,1.72855576,84.104,84.061,41.63643068]
[1772322119687,1.72855576,84.104,84.063,41.63544008]
[1772322120087,1.72855576,84.123,84.08,3.04397879]
[1772322120392,1.72855576,84.123,84.064,1.47389299]
[1772322120393,1.72855576,84.123,84.07,3.04397879]
[1772322121290,1.72855576,84.121,84.071,41.63147815]
[1772322122098,1.72855576,84.121,84.08,3.04397879]
[1772322122478,1.72855576,84.121,84.081,1.18932933]
[1772322123097,1.72855576,84.121,84.082,41.62603172]
[1772322123605,1.72855576,84.151,84.11,3.04397879]
[1772322123772,1.72855576,84.156,84.11,3.04397879]
[1772322125199,1.72855576,84.16,84.12,3.04397879]
[1772322125372,1.72855576,84.167,84.13,2.44959715]
[1772322125574,1.72855576,84.167,84.13,3.04397879]
[1772322125799,1.72855576,84.162,84.13,3.04397879]
[1772322127087,1.72855576,84.168,84.131,11.88622505]
[1772322127295,1.72855576,84.163,84.131,11.88622505]
[1772322127698,1.72855576,84.163,84.131,41.60178768]
[1772322129595,0.2,84.18,84.131,41.60178768]
[1772322129898,1.72855576,84.163,84.131,41.60178768]
[1772322130278,1.72855576,84.159,84.125,11.88700576]
[1772322130490,1.72855576,84.159,84.113,11.88876868]
[1772322131392,1.72855576,84.159,84.102,11.89032365]
[1772322131700,41.58745246,84.16,84.102,11.89032365]
[1772322131701,1.72855576,84.157,84.102,11.89032365]
[1772322131903,1.22855576,84.157,84.103,0.16140017]
[1772322132476,1.22855576,84.157,84.121,0.16140017]
[1772322133993,1.22855576,84.157,84.122,0.15897774]
[1772322134585,1.22855576,84.157,84.123,0.15897774]
[1772322135389,1.47855576,84.155,84.116,11.88832826]
[1772322135587,1.47855576,84.155,84.116,12.04610916]
[1772322135799,1.47855576,84.153,84.116,0.1577809]
[1772322136191,1.47855576,84.153,84.111,12.04567362]
[1772322137306,1.47855576,84.151,84.111,0.15662225]
[1772322138380,29.70673511,84.156,84.111,0.15662225]
[1772322138381,11.88354129,84.15,84.111,0.15662225]
[1772322138580,1.47855576,84.149,84.111,0.15662225]
[1772322139509,1.47855576,84.149,84.104,0.15202523]
[1772322139808,1.55456837,84.147,84.1,3.04178305]
[1772322140109,1.55456837,84.145,84.1,3.04178305]
[1772322140607,1.55456837,84.143,84.1,3.04178305]
[1772322140809,1.55456837,84.143,84.101,11.89046503]
[1772322141907,2.74358659,84.149,84.12,3.04178305]
[1772322142098,1.55456837,84.149,84.12,3.04178305]
[1772322142605,2.14895001,84.161,84.131,11.88622505]
[1772322142993,1.55456837,84.16,84.13,3.04178305]
[1772322143189,1.55456837,84.159,84.13,14.92812457]
[1772322143884,1.55456837,84.159,84.13,11.88634152]
[1772322144891,1.55456837,84.159,84.121,41.60673315]
[1772322145088,1.55456837,84.159,84.13,3.04178305]
[1772322147195,1.55456837,84.159,84.131,11.88622505]
[1772322147595,1.55456837,84.157,84.131,11.88622505]
[1772322148708,0.59438164,84.161,84.14,3.04178305]
[1772322150019,1.55456837,84.176,84.15,3.04178305]
[1772322152115,1.55456837,84.176,84.15,14.9252592]
[1772322153423,1.55456837,84.174,84.146,11.88410092]
[1772322155308,1.55456837,84.172,84.141,11.88481239]
[1772322157525,1.55456837,84.177,84.15,3.04178305]
[1772322157904,0.2,84.18,84.151,1.18834]
[1772322158123,1.55456837,84.179,84.151,1.18834]
[1772322158312,0.2,84.18,84.151,1.18834]
[1772322158506,0.2,84.18,84.15,3.04178305]
[1772322158708,1.55456837,84.179,84.15,3.04178305]
[1772322159724,1.55456837,84.179,84.143,41.8801778]
[1772322159905,1.55456837,84.177,84.083,3.69383402]
[1772322160107,1.55456837,84.177,84.08,3.04178305]
[1772322160108,1.55456837,84.175,84.121,5.36086188]
[1772322160305,41.57855971,84.178,84.121,5.36086188]
[1772322160306,1.55456837,84.173,84.13,3.04178305]
[1772322160514,1.55456837,84.171,84.13,3.04178305]
[1772322160716,1.55456837,84.169,84.13,3.04178305]
[1772322160914,1.55456837,84.167,84.131,11.88622505]
[1772322162105,1.4849662,84.177,84.14,3.04178305]
[1772322162106,1.55456837,84.173,84.14,3.04178305]
[1772322163106,1.55456837,84.173,84.141,41.59684338]
[1772322164709,1.55456837,84.173,84.125,0.59358345]
[1772322164710,1.55456837,84.171,84.13,32.75741785]
[1772322164919,1.55456837,84.169,84.115,0.59359046]
[1772322165231,1.55456837,84.165,84.121,11.88763804]
[1772322165426,1.55456837,84.165,84.104,5.36086188]
[1772322165427,1.55456837,84.165,84.11,11.88915809]
[1772322166228,1.55456837,84.165,84.11,44.65392294]
[1772322166612,1.55456837,84.165,84.11,11.88915809]
[1772322167132,1.55456837,84.163,84.11,14.93094114]
[1772322167630,1.55456837,84.16,84.11,14.93094114]
[1772322168433,1.55456837,84.158,84.11,14.93094114]
[1772322169614,1.55456837,84.157,84.11,14.93094114]
[1772322170434,13.43740361,84.155,84.11,14.93094114]
[1772322170615,1.55456837,84.154,84.11,14.93094114]
[1772322171230,1.55456837,84.154,84.11,44.65392294]
[1772322171733,1.55456837,84.153,84.11,44.65392294]
[1772322172136,1.55456837,84.153,84.12,3.04178305]
[1772322172637,1.55456837,84.151,84.121,11.88763804]
[1772322173938,1.55456837,84.165,84.13,3.04178305]
[1772322174120,1.55456837,84.165,84.122,5.64518502]
[1772322174121,1.55456837,84.165,84.14,3.04178305]
[1772322174724,1.55456837,84.165,84.141,11.88481239]
[1772322174926,1.55456837,84.165,84.122,1.18874967]
[1772322175121,1.55456837,84.163,84.12,3.04178305]
[1772322175435,1.55456837,84.161,84.13,3.04178305]
[1772322176318,1.55456837,84.161,84.131,11.88622505]
[1772322176518,1.55456837,84.16,84.131,11.88622505]
[1772322176838,1.55456837,84.158,84.131,11.88622505]
[1772322177847,1.55456837,84.158,84.124,11.88715029]
[1772322178527,1.55456837,84.158,84.13,3.04178305]
[1772322181149,1.55456837,84.158,84.131,41.60178768]
[1772322183231,1.55456837,84.17,84.14,3.04178305]
[1772322184349,1.55456837,84.17,84.141,11.88481239]
[1772322184843,1.55456837,84.17,84.141,41.59684338]
[1772322186136,1.55456837,84.17,84.15,3.04178305]
[1772322186453,1.55456837,84.17,84.151,11.88340007]
[1772322188146,1.55456837,84.17,84.15,3.04178305]
[1772322188451,1.55456837,84.17,84.14,3.04178305]
[1772322190271,1.55456837,84.17,84.141,11.88481239]
[1772322190945,1.55456837,84.17,84.15,3.04178305]
[1772322191660,1.55456837,84.17,84.151,11.88340007]
[1772322197457,1.55456837,84.169,84.14,3.04178305]
[1772322198451,1.55456837,84.169,84.141,11.88481239]
[1772322199965,11.88010794,84.175,84.15,3.03956486]
[1772322200260,11.88010794,84.175,84.141,11.88481239]
[1772322200261,0.2,84.18,84.16,3.03956486]
[1772322200442,0.2,84.18,84.17,3.03956486]
[1772322200641,1.55456837,84.194,84.17,3.03956486]
[1772322200960,1.55456837,84.194,84.18,3.03956486]
[1772322201265,0.2,84.2,84.18,3.03956486]
[1772322201559,0.2,84.2,84.183,1.47321019]
[1772322201740,0.2,84.21,84.182,11.87902401]
[1772322201741,0.2,84.21,84.19,3.03956486]
[1772322201947,0.2,84.21,84.19,4.51277505]
[1772322202146,0.2,84.21,84.191,1.47321019]
[1772322202556,0.2,84.21,84.19,1.47321019]
[1772322202858,0.2,84.21,84.19,4.51277505]
[1772322203040,0.2,84.21,84.19,1.47321019]
[1772322203243,0.2,84.21,84.182,11.87902401]
[1772322203244,1.52499465,84.208,84.18,3.03956486]
[1772322203447,1.52499465,84.208,84.17,11.8806727]
[1772322203448,1.52499465,84.204,84.174,11.88011387]
[1772322204643,1.52499465,84.204,84.18,3.03956486]
[1772322205050,1.52499465,84.204,84.18,4.51277505]
[1772322205252,1.52499465,84.204,84.18,3.03956486]
[1772322205567,1.52499465,84.202,84.17,3.03956486]
[1772322205754,1.52499465,84.2,84.18,3.03956486]
[1772322207262,1.52499465,84.2,84.19,3.03956486]
[1772322207970,1.52499465,84.209,84.19,3.03956486]
[1772322208463,1.52499465,84.208,84.181,13.35237532]
[1772322209360,1.52499465,84.206,84.17,3.03956486]
[1772322209565,1.52499465,84.204,84.18,3.03956486]
[1772322210071,1.52499465,84.202,84.181,1.47321019]
[1772322210443,1.52499465,84.202,84.18,3.03956486]
[1772322210863,1.52499465,84.202,84.181,1.47321019]
[1772322211052,1.52499465,84.202,84.18,3.03956486]
[1772322211253,1.52499465,84.202,84.181,11.87916513]
[1772322212869,1.52499465,84.2,84.17,3.03956486]
[1772322213048,1.52499465,84.2,84.17,14.92028245]
[1772322213250,1.52499465,84.2,84.17,16.39349264]
[1772322213459,1.52499465,84.2,84.18,3.03956486]
[1772322213862,1.52499465,84.2,84.171,1.47321019]
[1772322214869,1.52499465,84.2,84.172,11.88043529]
[1772322215174,1.09204973,84.21,84.181,1.47321019]
[1772322215354,1.52499465,84.206,84.19,3.03956486]
[1772322215755,1.52499465,84.206,84.181,1.47321019]
[1772322216386,0.2,84.21,84.181,1.47321019]
[1772322216546,11.87480885,84.212,84.172,41.58152353]
[1772322216547,1.52499465,84.225,84.2,3.03956486]
[1772322216745,1.52499465,84.225,84.21,3.03956486]
[1772322217776,1.52499465,84.225,84.204,11.87580179]
[1772322217971,1.52499465,84.225,84.2,4.51277505]
[1772322218171,1.52499465,84.225,84.201,11.87634351]
[1772322218673,1.52499465,84.231,84.21,3.03956486]
[1772322220676,1.52499465,84.229,84.21,3.03956486]
[1772322225591,1.4680523,84.227,84.201,1.49426722]
[1772322226072,1.4680523,84.227,84.21,3.03956486]
[1772322227183,1.43530866,84.238,84.212,1.44386865]
[1772322227385,1.43530866,84.238,84.22,3.03956486]
[1772322229171,1.43530866,84.236,84.21,3.03956486]
[1772322229473,1.43530866,84.236,84.22,3.03956486]
[1772322230267,1.43530866,84.241,84.23,3.03956486]
[1772322230466,29.66694973,84.269,84.23,3.03956486]
[1772322230684,3.69383402,84.266,84.23,4.48343351]
[1772322230870,3.69383402,84.266,84.231,1.44386865]
[1772322231581,3.69383402,84.266,84.24,3.03956486]
[1772322231782,3.69383402,84.266,84.231,1.44386865]
[1772322232583,1.43530866,84.249,84.231,1.44386865]
[1772322232766,1.63530866,84.25,84.232,1.44386865]
[1772322234381,1.43530866,84.278,84.241,1.44386865]
[1772322234572,1.43530866,84.278,84.251,1.44386865]
[1772322235372,1.43530866,84.278,84.241,1.44386865]
[1772322235975,1.43530866,84.276,84.231,1.44386865]
[1772322236292,1.43530866,84.276,84.24,3.03956486]
[1772322236478,1.43530866,84.276,84.24,4.48343351]
[1772322237067,1.43530866,84.274,84.241,13.31457293]
[1772322237377,1.43530866,84.274,84.242,1.44386865]
[1772322237785,1.43530866,84.274,84.251,1.44386865]
[1772322240388,3.69383402,84.301,84.243,1.44386865]
[1772322240389,1.43530866,84.272,84.243,1.44386865]
[1772322240578,1.43530866,84.272,84.24,3.03956486]
[1772322240579,1.43530866,84.272,84.24,4.48343351]
[1772322240773,1.43530866,84.272,84.241,1.44386865]
[1772322241380,1.43530866,84.272,84.251,1.44386865]
[1772322241691,1.43530866,84.272,84.245,1.44386865]
[1772322242290,11.86647838,84.271,84.245,1.44386865]
[1772322242494,1.43530866,84.27,84.245,1.44386865]
[1772322242884,1.43530866,84.27,84.237,1.44386865]
[1772322244480,1.43530866,84.268,84.237,1.44386865]
[1772322244876,1.43530866,84.268,84.205,1.44386865]
[1772322245083,1.43530866,84.268,84.221,1.44386865]
[1772322245597,1.43530866,84.265,84.199,13.32039297]
[1772322246300,1.43530866,84.265,84.199,1.44386865]
[1772322246487,1.43530866,84.26,84.199,1.44386865]
[1772322246687,1.43530866,84.26,84.189,11.87797775]
[1772322246886,1.43530866,84.26,84.188,1.44386865]
[1772322247300,1.43530866,84.26,84.191,1.44386865]
[1772322247892,1.43530866,84.26,84.185,1.44386865]
[1772322248198,1.43530866,84.26,84.191,1.44386865]
[1772322248601,1.43530866,84.255,84.193,1.44386865]
[1772322250801,1.43530866,84.25,84.184,1.44386865]
[1772322252709,1.43530866,84.25,84.191,1.44386865]
[1772322255012,1.43530866,84.245,84.193,1.44386865]
[1772322257499,1.41952067,84.243,84.194,11.87733092]
[1772322257703,1.41952067,84.243,84.195,1.46289001]
[1772322259908,1.41952067,84.241,84.195,1.46289001]
[1772322261808,41.54795821,84.24,84.192,11.87748204]
[1772322261995,1.41952067,84.239,84.193,1.46289001]
[1772322262994,1.41952067,84.237,84.195,1.46289001]
[1772322263413,1.41952067,84.237,84.201,1.46289001]
[1772322264699,1.41952067,84.235,84.201,1.46289001]
[1772322265514,1.41952067,84.235,84.203,1.46289001]
[1772322268305,1.41952067,84.233,84.203,1.46289001]
[1772322268701,1.41952067,84.233,84.193,1.46289001]
[1772322269699,1.41952067,84.233,84.193,11.87747199]
[1772322269903,1.41952067,84.233,84.194,1.46289001]
[1772322270305,1.41952067,84.233,84.201,1.46289001]
[1772322270519,1.41952067,84.231,84.195,1.46289001]
[1772322270813,41.55190425,84.232,84.166,0.28432314]
[1772322270814,11.87197264,84.232,84.201,1.46289001]
[1772322271197,1.41952067,84.231,84.201,1.46289001]
[1772322271402,13.29089392,84.237,84.201,1.46289001]
[1772322271601,11.87137325,84.237,84.201,1.46289001]
[1772322271918,1.41952067,84.236,84.201,1.46289001]
[1772322272121,11.87137325,84.237,84.201,1.46289001]
[1772322272339,13.29089392,84.237,84.201,1.46289001]
[1772322272526,1.41952067,84.236,84.203,1.46289001]
[1772322274110,1.41952067,84.236,84.202,11.87620246]
[1772322274111,1.41952067,84.236,84.197,1.46289001]
[1772322274519,1.41952067,84.234,84.197,1.46289001]
[1772322276107,1.41952067,84.232,84.197,1.46289001]
[1772322277834,1.41952067,84.232,84.199,1.46289001]
[1772322278020,1.41952067,84.232,84.18,3.03604093]
[1772322278212,1.41952067,84.23,84.18,3.03604093]
[1772322278806,1.41952067,84.227,84.17,3.03604093]
[1772322279824,1.41952067,84.222,84.17,3.03604093]
[1772322280028,1.41952067,84.222,84.171,1.46289001]
[1772322280522,1.41952067,84.222,84.171,11.88057644]
[1772322280708,1.41952067,84.222,84.167,1.46289001]
[1772322282109,1.41952067,84.217,84.167,1.46289001]
[1772322283813,1.41952067,84.217,84.169,1.46289001]
[1772322285233,1.38733864,84.212,84.172,1.45396928]
[1772322287131,1.47341837,84.21,84.172,1.45396928]
[1772322289127,1.47341837,84.208,84.172,1.45396928]
[1772322291130,1.47341837,84.206,84.172,1.45396928]
[1772322291631,1.47341837,84.206,84.166,1.43296101]
[1772322292118,1.47341837,84.206,84.167,11.88114106]
[1772322292317,1.47341837,84.206,84.168,1.43009229]
[1772322293332,1.47341837,84.204,84.171,1.4272537]
[1772322295539,1.47341837,84.204,84.173,1.42166124]
[1772322295850,1.47341837,84.209,84.181,1.42166124]
[1772322296015,11.87535626,84.208,84.181,1.42166124]
[1772322296518,1.47341837,84.207,84.181,1.42166124]
[1772322297725,1.47341837,84.205,84.181,1.42166124]
[1772322299836,1.47341837,84.205,84.183,1.41087754]
[1772322300524,1.47341837,84.21,84.183,1.41087754]
[1772322300737,69.4777204,84.244,84.182,11.87902401]
[1772322300738,11.87042246,84.243,84.201,1.44349065]
[1772322300946,59.43606568,84.301,84.211,1.44349065]
[1772322301119,11.86535198,84.279,84.221,1.44349065]
[1772322301320,3.69383402,84.276,84.221,1.44349065]
[1772322301527,41.52873194,84.279,84.241,1.44349065]
[1772322301836,11.86469706,84.284,84.253,1.44349065]
[1772322302043,12.06530383,84.28,84.246,1.44349065]
[1772322302246,12.06530383,84.28,84.24,3.03604093]
[1772322302247,12.06530383,84.28,84.248,1.44349065]
[1772322302717,1.47341837,84.279,84.248,1.44349065]
[1772322302919,1.47341837,84.279,84.251,1.44349065]
[1772322304035,1.47341837,84.279,84.253,1.44349065]
[1772322304239,0.2,84.28,84.253,1.44349065]
[1772322304527,13.53865987,84.28,84.253,1.44349065]
[1772322305223,1.47341837,84.279,84.253,1.44349065]
[1772322306832,1.47341837,84.279,84.255,1.44349065]
[1772322307035,12.0652415,84.28,84.255,1.44349065]
[1772322307921,13.53865987,84.28,84.255,1.44349065]
[1772322308122,1.47341837,84.279,84.255,1.44349065]
[1772322308934,0.2,84.3,84.261,1.44349065]
[1772322309143,59.69983374,84.339,84.256,11.86859096]
[1772322309144,1e-08,84.31,84.281,1.1802874]
[1772322309349,1e-08,84.31,84.298,1.1802874]
[1772322310365,1.47341838,84.31,84.259,1.15969516]